bitfinex-derivatives/quotes_SOLF0:USTF0_20241218
["timestamp","ask_amount","ask_price","bid_price","bid_amount"]
[1734552048723,2.3523,212.68,212.58,2.2467]
[1734552048931,33.23070108,212.71,212.57,53.8]
[1734552049126,33.23070108,212.67,212.57,53.8]
[1734552049334,33.23070108,212.59,212.52,143.55588]
[1734552049531,14.14,212.73,212.52,135.61388]
[1734552049532,33.23070108,212.55,212.52,135.61388]
[1734552049730,33.23070108,212.55,212.52,119.70478]
[1734552049932,2.3537,212.54,212.52,118.76468]
[1734552050527,2.3545,212.48,212.38,53.8]
[1734552050728,33.23070108,212.5,212.38,53.8]
[1734552051438,33.23070108,212.5,212.38,56.1554]
[1734552051632,33.23070108,212.5,212.38,53.8]
[1734552051837,33.23070108,212.42,212.3,2.3563]
[1734552052134,33.23070108,212.42,212.24,53.8]
[1734552052340,33.23070108,212.42,212.28,5.52721355]
[1734552052936,33.23070108,212.42,212.29,2.3565]
[1734552053337,38.80541191,212.42,212.29,2.3565]
[1734552053637,38.80541191,212.42,212.3,2.3564]
[1734552053838,33.23070108,212.42,212.28,5.52721355]
[1734552054033,33.23070108,212.5,212.28,5.52721355]
[1734552054232,2.3546,212.47,212.36,2.3557]
[1734552054436,33.23070108,212.5,212.36,2.3557]
[1734552054637,33.23070108,212.5,212.31,33.23070108]
[1734552054838,5.68806746,212.53,212.35,33.23070108]
[1734552055140,33.23070108,212.5,212.36,4.4204]
[1734552055436,33.23070108,212.46,212.29,2.2126]
[1734552056138,33.23070108,212.42,212.29,2.2126]
[1734552056539,33.23070108,212.38,212.28,5.52721355]
[1734552056734,2.356,212.34,212.25,4.4204]
[1734552056938,33.23070108,212.38,212.25,4.4204]
[1734552057331,2.3554,212.39,212.3,2.3563]
[1734552057532,33.23070108,212.47,212.27,33.23070108]
[1734552057734,5.73018214,212.46,212.27,33.23070108]
[1734552058331,33.23070108,212.47,212.27,33.23070108]
[1734552058535,33.23070108,212.47,212.31,33.23070108]
[1734552058737,33.23070108,212.47,212.32,2.1877]
[1734552059141,33.23070108,212.43,212.32,2.1877]
[1734552059839,33.23070108,212.47,212.32,2.1877]
[1734552060040,33.23070108,212.43,212.33,8.68]
[1734552060241,33.23070108,212.39,212.33,8.68]
[1734552060540,2.3559,212.35,212.28,8.68]
[1734552060837,33.23070108,212.31,211.86,4.698]
[1734552061037,2.3572,212.24,212.14,2.3581]
[1734552061239,33.23070108,212.27,212.12,5.75771977]
[1734552061543,43.70070108,212.27,212.09,6.5504]
[1734552061737,10.47,212.27,212.11,5.7922344]
[1734552062137,12.8268,212.27,212.18,2.3577]
[1734552062338,33.23070108,212.26,212.11,5.7922344]
[1734552062840,33.23070108,212.26,212.14,2.3581]
[1734552063039,10.47,212.27,212.14,33.23070108]
[1734552063240,10.47,212.27,212.15,6.6209]
[1734552063543,33.23070108,212.42,212.22,33.23070108]
[1734552063839,2.3551,212.43,212.31,2.3563]
[1734552064038,33.23070108,212.46,212.3,33.23070108]
[1734552064243,41.76858108,212.54,212.34,33.23070108]
[1734552064540,41.76858108,212.54,212.32,33.23070108]
[1734552064744,5.64881739,212.47,212.32,33.23070108]
[1734552065136,5.64881739,212.47,212.33,5.7743341]
[1734552065332,5.64881739,212.47,212.32,33.23070108]
[1734552065333,33.23070108,212.46,212.28,33.23070108]
[1734552065844,5.64881739,212.47,212.28,38.83711418]
[1734552066043,33.23070108,212.46,212.29,62.54]
[1734552066242,33.23070108,212.46,212.3,2.3563]
[1734552066437,33.23070108,212.42,212.29,62.54]
[1734552066641,33.23070108,212.38,212.29,62.54]
[1734552066945,5.64881739,212.47,212.19,8.68]
[1734552066946,33.23070108,212.3,212.19,8.68]
[1734552067240,33.23070108,212.26,212.14,8.68]
[1734552067640,33.23070108,212.22,212.13,8.68]
[1734552068136,39.03275199,212.22,212.09,53.86]
[1734552068337,33.23070108,212.18,212.09,53.86]
[1734552068640,2.3581,212.15,212.09,53.86]
[1734552068839,33.23070108,212.18,212.09,53.86]
[1734552069040,2.1225,212.17,212.09,53.86]
[1734552069341,39.03275199,212.22,212.09,53.86]
[1734552069542,39.03275199,212.22,212.0,4.5392]
[1734552069543,5.80205091,212.22,212.16,2.3579]
[1734552069840,5.80205091,212.22,212.03,8.68]
[1734552070045,2.3583,212.13,212.05,2.3591]
[1734552070242,5.80205091,212.22,212.06,33.23070108]
[1734552070439,5.80205091,212.22,212.07,2.3085]
[1734552070949,33.23070108,212.26,212.07,2.3085]
[1734552071250,33.23070108,212.32,212.14,33.23070108]
[1734552071448,33.23070108,212.36,212.15,53.9]
[1734552071641,5.5586897,212.29,212.15,53.9]
[1734552071943,33.23070108,212.28,212.15,53.9]
[1734552072150,2.3568,212.27,212.17,2.3578]
[1734552072452,5.5586897,212.29,212.15,53.9]
[1734552072748,3.76,212.26,212.15,53.9]
[1734552072943,33.23070108,212.23,212.15,53.9]
[1734552073141,33.23070108,212.19,212.0,89.27970108]
[1734552073449,2.3582,212.14,212.06,2.359]
[1734552073645,33.23070108,212.19,212.0,89.27970108]
[1734552073842,33.23070108,212.11,212.0,53.9]
[1734552074149,33.23070108,212.07,212.0,53.9]
[1734552074443,3.77,212.06,211.95,2.3602]
[1734552074650,3.77,212.06,211.87,39.84260108]
[1734552074950,37.00070108,212.06,211.87,39.84260108]
[1734552075146,3.77,212.06,211.91,33.23070108]
[1734552075341,5.74392822,212.01,211.91,33.23070108]
[1734552075650,3.77,212.06,211.91,33.23070108]
[1734552075846,3.77,212.06,212.01,2.3596]
[1734552076048,0.2691,212.06,211.99,33.23070108]
[1734552076347,5.60007515,212.12,212.03,33.23070108]
[1734552076651,33.23070108,212.23,212.04,53.9]
[1734552076945,5.53890928,212.17,212.04,87.13070108]
[1734552077145,33.23070108,212.23,212.04,87.13070108]
[1734552077651,5.59139394,212.18,212.04,53.9]
[1734552078645,33.23070108,212.15,212.04,53.9]
[1734552078841,5.59139394,212.18,212.04,53.9]
[1734552079046,2.3575,212.21,212.09,2.3587]
[1734552079245,33.23070108,212.23,212.04,87.13070108]
[1734552079447,33.23070108,212.19,212.04,53.9]
[1734552079641,2.3581,212.15,212.07,2.3589]
[1734552079843,5.74370634,212.2,212.04,53.9]
[1734552080044,33.23070108,212.19,212.04,53.9]
[1734552080445,33.23070108,212.23,212.04,87.13070108]
[1734552080641,33.23070108,212.27,212.08,33.23070108]
[1734552080846,6.1169,212.26,212.17,2.3578]
[1734552081053,3.76,212.26,212.12,33.23070108]
[1734552081241,3.76,212.26,212.13,6.5457]
[1734552081448,3.76,212.26,212.16,33.23070108]
[1734552081646,2.1845,212.4,212.2,33.23070108]
[1734552081847,5.5240141,212.37,212.24,33.23070108]
[1734552082049,33.23070108,212.46,212.29,33.23070108]
[1734552082352,2.3548,212.45,212.34,2.3559]
[1734552082547,2.1845,212.51,212.33,33.23070108]
[1734552083446,5.76069285,212.49,212.34,2.3559]
[1734552083651,5.76069285,212.49,212.33,5.64518456]
[1734552084249,5.76069285,212.49,212.3,2.1402]
[1734552084250,2.24,212.48,212.3,2.1402]
[1734552084453,2.24,212.48,212.3,35.37090108]
[1734552084653,2.24,212.48,212.31,5.66574729]
[1734552084944,33.23070108,212.43,212.3,2.1402]
[1734552085143,33.23070108,212.43,212.25,56.2318]
[1734552085144,2.3554,212.4,212.25,58.5887]
[1734552085355,33.23070108,212.39,212.25,53.92]
[1734552085655,2.3566,212.28,212.25,53.92]
[1734552085853,33.23070108,212.31,212.25,53.92]
[1734552086054,33.23070108,212.27,212.1,2.1696]
[1734552086259,4.4123,212.39,212.13,5.56509829]
[1734552086260,33.23070108,212.31,212.13,5.56509829]
[1734552086749,2.2514,212.39,212.21,33.23070108]
[1734552086951,2.2514,212.39,212.22,2.2099]
[1734552087154,2.3277,212.46,212.25,33.23070108]
[1734552087155,33.23070108,212.45,212.25,33.23070108]
[1734552087348,8.09035839,212.44,212.34,2.3559]
[1734552087653,8.09035839,212.44,212.3,53.9]
[1734552087654,33.23070108,212.41,212.3,53.9]
[1734552087852,5.73545839,212.44,212.3,53.9]
[1734552088460,2.2514,212.45,212.3,53.9]
[1734552088851,2.354,212.52,212.36,2.3556]
[1734552089048,37.86780108,212.54,212.37,2.1873]
[1734552089454,5.52561075,212.52,212.3,53.9]
[1734552089755,5.52561075,212.52,212.32,33.23070108]
[1734552090853,2.3094,212.54,212.38,39.02058015]
[1734552091053,33.23070108,212.54,212.38,5.78987907]
[1734552091261,33.23070108,212.54,212.33,33.23070108]
[1734552091455,33.23070108,212.5,212.31,2.1873]
[1734552091848,2.2385,212.49,212.33,33.23070108]
[1734552092053,33.23070108,212.5,212.36,2.3557]
[1734552092254,33.23070108,212.46,212.26,35.40030108]
[1734552092456,33.23070108,212.42,212.32,0.86568667]
[1734552093058,2.2385,212.41,212.32,0.86568667]
[1734552093561,2.2298,212.47,212.32,0.86568667]
[1734552093759,4.5843,212.47,212.36,2.3557]
[1734552094157,2.1517,212.51,212.33,33.23070108]
[1734552094363,2.1517,212.51,212.32,0.86568667]
[1734552094552,5.74709873,212.5,212.32,0.86568667]
[1734552094859,5.74709873,212.5,212.33,33.23070108]
[1734552095054,33.23070108,212.56,212.33,35.35690108]
[1734552095258,33.23070108,212.56,212.37,33.23070108]
[1734552095560,33.23070108,212.56,212.38,2.1964]
[1734552095859,5.71259691,212.52,212.38,2.1964]
[1734552096055,5.71259691,212.52,212.38,7.83490283]
[1734552096258,38.94329799,212.52,212.32,34.09638775]
[1734552096451,38.94329799,212.52,212.33,2.1964]
[1734552096751,35.47070108,212.48,212.33,2.1964]
[1734552097157,2.24,212.48,212.33,2.1964]
[1734552097354,2.24,212.48,212.36,33.23070108]
[1734552098159,2.24,212.48,212.39,2.3553]
[1734552098362,2.24,212.48,212.33,2.1964]
[1734552098857,33.23070108,212.44,212.32,0.86568667]
[1734552099067,33.23070108,212.4,212.32,0.86568667]
[1734552099855,33.23070108,212.4,212.32,0.33658667]
[1734552099856,2.356,212.34,212.32,0.33658667]
[1734552100063,33.23070108,212.4,212.32,0.33658667]
[1734552100362,5.79652665,212.41,212.32,0.33658667]
[1734552101666,33.23070108,212.36,212.19,5.72457973]
[1734552101863,33.23070108,212.32,212.15,8.76]
[1734552102063,2.2193,212.31,212.13,8.76]
[1734552102263,11.9593,212.31,212.13,8.76]
[1734552102461,2.3568,212.27,212.18,2.3577]
[1734552102662,11.9593,212.31,212.13,8.76]
[1734552103166,33.23070108,212.28,212.13,8.76]
[1734552103369,38.77332488,212.28,212.13,8.76]
[1734552103865,9.74,212.31,212.15,33.23070108]
[1734552104268,2.3569,212.26,212.18,2.3577]
[1734552104470,5.65524194,212.3,212.13,8.76]
[1734552104471,33.23070108,212.28,212.13,8.76]
[1734552104861,5.65524194,212.3,212.1,2.3585]
[1734552104862,33.23070108,212.24,212.1,2.3585]
[1734552105064,33.23070108,212.24,212.09,64.915]
[1734552105265,4.5004,212.27,212.09,64.915]
[1734552105565,4.5004,212.27,212.14,2.3582]
[1734552105766,4.5004,212.27,212.09,64.915]
[1734552106066,2.3577,212.19,212.12,2.3584]
[1734552106361,4.5004,212.27,212.09,64.915]
[1734552106565,2.3583,212.13,212.09,53.88]
[1734552106768,33.23070108,212.17,211.99,5.77373752]
[1734552106966,33.23070108,212.13,211.96,8.76]
[1734552107158,2.3591,212.06,211.99,2.3598]
[1734552107359,33.23070108,212.05,211.95,53.9]
[1734552107562,35.46450108,212.05,211.95,53.9]
[1734552108159,2.3601,211.97,211.95,53.9]
[1734552108369,33.23070108,212.01,211.95,53.9]
[1734552108567,35.46450108,212.05,211.95,53.9]
[1734552108868,5.76864205,212.0,211.95,53.9]
[1734552110766,35.46450108,212.05,211.95,53.9]
[1734552110965,2.3596,212.02,211.95,53.9]
[1734552111171,5.73417317,212.03,211.95,53.9]
[1734552111666,2.3597,212.01,211.93,2.3604]
[1734552111867,33.23070108,212.0,211.79,87.15070108]
[1734552112168,33.23070108,211.96,211.8,8.48]
[1734552113469,33.23070108,211.92,211.79,53.92]
[1734552113966,2.3608,211.91,211.79,53.92]
[1734552114172,5.60732838,211.92,211.79,53.92]
[1734552114768,33.23070108,212.01,211.79,87.15070108]
[1734552114968,33.23070108,211.97,211.79,53.92]
[1734552115466,33.23070108,211.93,211.79,53.92]
[1734552115875,33.23070108,211.93,211.8,8.48]
[1734552115876,2.3612,211.87,211.8,8.48]
[1734552116166,33.23070108,211.93,211.8,8.48]
[1734552116872,2.3611,211.88,211.8,2.3619]
[1734552117171,33.23070108,211.88,211.8,8.48]
[1734552117765,33.23070108,211.92,211.8,8.48]
[1734552118766,33.23070108,211.92,211.81,2.3618]
[1734552118963,33.23070108,211.92,211.8,8.48]
[1734552119476,33.23070108,211.92,211.79,53.92]
[1734552119768,33.23070108,211.88,211.79,53.92]
[1734552120566,33.23070108,211.84,211.72,5.2841]
[1734552120774,33.23070108,211.84,211.62,53.98]
[1734552120775,33.23070108,211.8,211.66,8.48]
[1734552120975,33.23070108,211.76,211.66,8.48]
[1734552121470,2.3633,211.68,211.62,53.98]
[1734552121677,33.23070108,211.68,211.62,53.98]
[1734552121975,2.3624,211.77,211.69,2.3631]
[1734552122167,3.1147,211.79,211.7,8.5]
[1734552122368,33.23070108,211.76,211.7,8.5]
[1734552123278,33.23070108,211.72,211.62,53.98]
[1734552123574,5.76773273,211.77,211.57,8.5]
[1734552123575,33.23070108,211.68,211.57,8.5]
[1734552123771,2.3639,211.63,211.57,8.5]
[1734552124074,5.76773273,211.77,211.57,8.5]
[1734552124279,2.3637,211.65,211.57,10.8644]
[1734552124473,33.23070108,211.69,211.57,8.5]
[1734552124680,33.23070108,211.65,211.48,54.0]
[1734552124974,33.23070108,211.65,211.52,8.5]
[1734552125277,33.23070108,211.61,211.52,8.5]
[1734552125476,33.23070108,211.61,211.48,54.0]
[1734552125672,2.3655,211.48,211.41,10.8662]
[1734552125873,33.23070108,211.53,211.42,0.86923498]
[1734552126270,5.55567536,211.63,211.42,0.86923498]
[1734552126271,33.23070108,211.49,211.42,0.86923498]
[1734552126475,33.23070108,211.49,211.34,62.52]
[1734552126673,9.1001,211.52,211.34,62.52]
[1734552126674,2.3654,211.5,211.41,2.3663]
[1734552126975,33.23070108,211.57,211.35,39.02359862]
[1734552127172,2.3652,211.52,211.42,2.3662]
[1734552127374,33.23070108,211.57,211.39,33.23070108]
[1734552127568,33.23070108,211.61,211.43,33.23070108]
[1734552127879,5.55567536,211.63,211.47,33.23070108]
[1734552128079,38.81289617,211.65,211.48,14.4018]
[1734552128275,38.81289617,211.65,211.49,8.5]
[1734552128778,33.23070108,211.6,211.45,54.04]
[1734552128974,33.23070108,211.64,211.46,33.23070108]
[1734552129175,33.23070108,211.64,211.46,36.16620108]
[1734552129370,2.3642,211.6,211.49,2.3653]
[1734552129579,5.58219509,211.65,211.47,0.86906248]
[1734552129881,2.3655,211.49,211.42,8.5]
[1734552130076,33.23070108,211.55,211.35,33.23070108]
[1734552130277,6.0983,211.54,211.36,5.56475529]
[1734552130480,33.23070108,211.51,211.27,54.04]
[1734552130676,33.23070108,211.47,211.28,48.66043265]
[1734552130876,33.23070108,211.47,211.29,0.86933157]
[1734552131077,5.67375682,211.45,211.29,5.68397571]
[1734552131376,33.23070108,211.39,211.21,33.23070108]
[1734552131674,5.67375682,211.45,211.21,33.23070108]
[1734552131675,2.938,211.38,211.21,33.23070108]
[1734552131877,2.938,211.38,211.17,33.23070108]
[1734552132078,2.3673,211.33,211.22,2.3684]
[1734552132275,3.1108,211.37,211.17,33.23070108]
[1734552132477,3.1108,211.37,211.19,5.5701337]
[1734552132685,2.3677,211.29,211.19,7.9388337]
[1734552132872,2.3677,211.29,211.19,2.3687]
[1734552133080,33.23070108,211.29,211.04,3.0389]
[1734552133284,2.3678,211.28,211.18,2.3689]
[1734552133479,2.3678,211.28,210.31,63.19632836]
[1734552133683,33.56364225,211.19,210.99,33.56364225]
[1734552133882,33.56364225,211.19,211.0,3.1138]
[1734552134080,343.83374382,211.18,211.13,2.3694]
[1734552134285,33.56364225,211.15,210.65,33.56364225]
[1734552134485,152.42076078,210.99,210.91,33.56364225]
[1734552134685,33.56364225,211.14,210.95,33.56364225]
[1734552134885,291.0,211.16,210.98,5.77931925]
[1734552135085,291.0,211.15,211.07,2.3701]
[1734552135381,158.69249715,211.14,211.08,11.6138]
[1734552135584,158.69249715,211.14,211.08,4.50350001]
[1734552135781,158.69249715,211.14,211.03,46.98970001]
[1734552135982,291.0,211.13,210.98,39.3429615]
[1734552136284,291.0,211.13,208.68,24.73839953]
[1734552136285,291.0,211.13,210.84,8.5]
[1734552136485,158.69249715,211.14,210.91,5.77552746]
[1734552136682,291.0,211.13,211.03,2.3705]
[1734552136881,449.69249715,211.14,210.98,87.68364225]
[1734552137082,66.12187381,211.13,210.98,80.57214226]
[1734552137289,324.56364225,211.12,210.99,8.52]
[1734552137590,291.0,211.11,210.9,8.52]
[1734552137789,242.35355537,210.96,210.91,8.52]
[1734552137985,66.12187381,211.13,210.92,8.52]
[1734552138181,66.12187381,211.13,211.04,33.56364225]
[1734552138387,66.12187381,211.13,211.0,54.12]
[1734552138581,66.12187381,211.13,210.93,2.9453]
[1734552138582,79.34624857,211.12,210.93,2.9453]
[1734552138886,145.46812238,211.12,210.98,33.56364225]
[1734552139284,145.46812238,211.12,211.02,33.56364225]
[1734552139589,145.46812238,211.12,211.1,33.56364225]
[1734552139791,145.46812238,211.12,211.08,2.3699]
[1734552139993,145.46812238,211.11,211.04,8.52]
[1734552140383,145.46812238,211.11,210.93,34.99422811]
[1734552140589,145.46812238,211.11,210.97,32.04892811]
[1734552140789,181.6085485,210.98,210.94,11.5589]
[1734552141087,145.46812238,211.11,210.94,11.5589]
[1734552141287,145.46812238,211.11,211.07,32.04892811]
[1734552141489,145.46812238,211.11,211.1,2.3698]
[1734552141688,79.34624857,211.11,210.93,2.9453]
[1734552141988,251.25028194,211.11,210.98,32.03403005]
[1734552142191,291.0,211.1,210.98,32.03403005]
[1734552142392,291.0,211.1,211.02,32.03403005]
[1734552142584,251.25028194,211.11,211.03,2.3705]
[1734552142790,251.25028194,211.11,210.97,32.03403005]
[1734552142984,251.25028194,211.11,210.96,8.64]
[1734552142985,251.25028194,211.11,211.01,32.03403005]
[1734552143192,251.25028194,211.11,210.95,32.03403005]
[1734552143383,283.28431199,211.11,210.93,2.9453]
[1734552143585,32.03403005,211.07,210.93,2.9453]
[1734552143788,32.03403005,211.07,210.94,2.3715]
[1734552143789,2.3704,211.05,210.94,2.3715]
[1734552143992,32.03403005,210.99,210.79,32.03403005]
[1734552144185,248.57036725,210.94,210.87,32.03403005]
[1734552144393,66.11693591,210.93,210.92,2.3718]
[1734552144592,66.11693591,210.93,210.9,40.67403005]
[1734552144796,66.11693591,210.93,210.9,46.28687769]
[1734552144994,79.34624858,210.92,210.91,8.64]
[1734552145191,79.34624858,210.92,210.91,2.3719]
[1734552145590,79.34624858,210.92,210.82,32.03403005]
[1734552145894,79.34624858,210.92,210.85,2.3726]
[1734552146093,79.34624858,210.92,210.82,37.79177211]
[1734552146794,79.34624858,210.92,210.82,5.75774206]
[1734552147088,79.34624858,210.92,210.83,2.3728]
[1734552147390,291.0,210.91,210.8,3.0394]
[1734552147590,79.34624858,210.92,210.9,2.372]
[1734552147796,79.34624858,210.92,210.82,32.03403005]
[1734552147997,79.34624858,210.92,210.8,3.0394]
[1734552148394,79.34624858,210.92,210.82,32.03403005]
[1734552148593,79.34624858,210.92,210.9,34.40603005]
[1734552148794,240.56316725,210.94,210.9,32.03403005]
[1734552148990,240.18156725,210.94,210.91,62.84]
[1734552149191,240.18156725,210.94,210.93,2.3717]
[1734552149696,92.57062334,211.14,211.09,2.3699]
[1734552149892,92.57062334,211.14,211.1,40.67403005]
[1734552150297,92.57062334,211.14,211.12,2.3696]
[1734552150493,242.13224512,211.18,211.1,32.03403005]
[1734552150796,195.01122309,211.18,211.15,32.03403005]
[1734552150993,43.31827703,211.18,211.17,2.369]
[1734552151191,36.37205066,211.18,211.17,2.369]
[1734552151891,291.0,211.48,211.17,32.03403005]
[1734552152096,291.0,211.48,211.29,32.03403005]
[1734552152397,291.0,211.45,211.29,32.03403005]
[1734552152597,291.0,211.45,211.25,32.03403005]
[1734552152795,3.0537,211.5,211.38,2.3666]
[1734552152994,3.0537,211.5,211.25,32.03403005]
[1734552152995,291.0,211.42,211.29,32.03403005]
[1734552153188,323.03403005,211.44,211.3,5.76381964]
[1734552153396,32.03403005,211.44,211.33,2.3672]
[1734552153789,32.03403005,211.47,211.31,2.3674]
[1734552153994,32.03403005,211.39,211.22,32.03403005]
[1734552154196,32.03403005,211.35,211.18,32.03403005]
[1734552154598,323.03403005,211.39,211.2,5.61949687]
[1734552154898,34.40143005,211.31,211.16,2.3691]
[1734552155099,291.0,211.25,211.13,5.64656772]
[1734552155399,292.0,211.34,211.21,2.3685]
[1734552155595,291.0,211.33,211.14,32.03403005]
[1734552155893,3.3672,211.34,211.2,2.3687]
[1734552156088,32.03403005,211.31,211.13,5.64656772]
[1734552156289,291.0,211.3,211.16,32.03403005]
[1734552156495,291.0,211.3,211.13,5.64656772]
[1734552156496,291.0,211.3,211.24,2.3681]
[1734552156798,32.03403005,211.27,211.08,32.03403005]
[1734552156995,32.03403005,211.23,211.17,525.15142155]
[1734552157195,32.03403005,211.23,211.17,591.24519336]
[1734552157395,32.03403005,211.19,211.17,352.04486777]
[1734552157601,293.3489,211.18,211.17,194.3507189]
[1734552157797,2.3689,211.18,211.17,72.25719434]
[1734552157993,2.3689,211.18,211.17,10.54927231]
[1734552158300,2.3691,211.16,211.15,384.80005766]
[1734552158501,40.67403005,211.16,210.95,32.03403005]
[1734552158702,291.0,211.15,211.01,2.3707]
[1734552158896,32.03403005,211.12,210.95,32.03403005]
[1734552159203,32.03403005,211.08,210.93,5.62263835]
[1734552159499,291.0,211.07,211.06,322.28522594]
[1734552159699,32.03403005,211.07,210.96,224.58273949]
[1734552160001,32.03403005,211.07,210.96,129.75311057]
[1734552160002,32.03403005,210.97,210.96,129.75311057]
[1734552160206,32.03403005,210.97,210.96,129.72981057]
[1734552160399,34.40533005,210.97,210.96,2.08549732]
[1734552160700,32.03403005,210.97,210.79,51.62973734]
[1734552161008,291.0,210.91,210.83,6.45371716]
[1734552161199,291.0,210.9,210.74,2.9836]
[1734552161398,291.0,210.89,210.74,2.9836]
[1734552161701,60.22242711,210.88,210.67,6.1117]
[1734552161894,291.0,210.87,210.74,32.03403005]
[1734552162100,291.0,210.87,210.81,2.373]
[1734552162297,60.22242711,210.88,210.79,32.03403005]
[1734552162603,60.22242711,210.88,210.73,37.75909228]
[1734552162798,291.0,210.87,210.73,37.75909228]
[1734552162999,291.0,210.87,210.78,32.03403005]
[1734552163201,60.22242711,210.88,210.78,32.03403005]
[1734552163603,60.22242711,210.88,210.74,5.64532599]
[1734552163900,60.22242711,210.88,210.79,20.50279228]
[1734552164095,60.22242711,210.88,210.79,8.97160611]
[1734552164695,60.17541254,210.88,210.79,8.97160611]
[1734552164895,310.71295906,210.82,210.75,32.03403005]
[1734552165093,310.71295906,210.82,210.79,32.03403005]
[1734552165296,310.71295906,210.82,210.68,32.03403005]
[1734552165494,310.71295906,210.82,210.75,5.70857337]
[1734552165703,310.71295906,210.82,210.7,32.03403005]
[1734552165896,310.71295906,210.82,210.61,3.173]
[1734552166094,310.71295906,210.82,210.67,32.03403005]
[1734552166295,310.71295906,210.82,210.73,5.60834303]
[1734552166496,310.71295906,210.82,210.75,32.03403005]
[1734552166697,310.71295906,210.82,210.76,3.1333]
[1734552166898,310.71295906,210.82,210.73,5.68294629]
[1734552167099,310.71295906,210.82,210.8,2.3731]
[1734552167504,310.71295906,210.82,210.74,32.03403005]
[1734552167705,310.71295906,210.82,210.63,8.36]
[1734552167899,310.71295906,210.82,210.76,2.3736]
[1734552168103,310.71295906,210.82,210.77,5.74021749]
[1734552168504,310.71295906,210.82,210.73,2.3738]
[1734552168805,310.71295906,210.82,210.68,32.03403005]
[1734552169002,310.71295906,210.82,210.73,2.3739]
[1734552169197,291.0,210.81,210.64,32.03403005]
[1734552169398,310.71295906,210.82,210.72,32.03403005]
[1734552169602,310.71295906,210.82,210.79,2.3732]
[1734552169806,310.71295906,210.82,210.72,37.66150445]
[1734552170510,310.71295906,210.82,210.72,5.6274744]
[1734552171208,310.71295906,210.82,210.73,2.3738]
[1734552171410,291.0,210.81,210.64,32.03403005]
[1734552171605,291.0,210.8,210.64,32.03403005]
[1734552171810,291.0,210.81,210.62,8.36]
[1734552172208,291.0,210.81,210.67,5.69172837]
[1734552172804,32.03403005,210.8,210.67,5.69172837]
[1734552173007,291.0,210.81,210.67,5.69172837]
[1734552173202,310.71295906,210.82,210.72,32.03403005]
[1734552173419,310.71295906,210.82,210.76,32.03403005]
[1734552173605,302.77095906,210.82,210.8,2.3729]
[1734552173806,302.77095906,210.82,210.8,34.40693005]
[1734552174007,302.77095906,210.82,210.8,2.3729]
[1734552174500,302.77095906,210.82,210.73,8.36]
[1734552174702,302.77095906,210.82,210.72,5.80543201]
[1734552174911,291.0,210.81,210.64,32.03403005]
[1734552175404,291.0,210.81,210.67,5.59252442]
[1734552175804,2.373,210.8,210.68,2.3742]
[1734552176103,291.0,210.8,210.63,32.03403005]
[1734552176309,291.0,210.79,210.68,2.3742]
[1734552176513,291.0,210.79,210.66,5.76615226]
[1734552176706,184.39890777,211.67,210.67,32.03403005]
[1734552176707,291.0,210.8,210.67,32.03403005]
[1734552176906,291.0,210.89,210.75,32.03403005]
[1734552177110,328.73658136,210.95,210.75,32.03403005]
[1734552177311,291.0,210.91,210.79,2.3729]
[1734552177511,291.0,210.91,210.77,5.56463011]
[1734552177807,291.0,210.9,210.82,2.3727]
[1734552178011,291.0,210.9,210.69,8.36]
[1734552178012,291.0,210.9,210.75,32.03403005]
[1734552178205,291.0,210.97,210.79,32.03403005]
[1734552178406,291.0,210.96,210.79,32.03403005]
[1734552178710,291.0,211.06,210.92,32.03403005]
[1734552178911,291.0,211.11,211.05,2.37]
[1734552179107,296.77979367,211.14,211.05,2.37]
[1734552179308,291.0,211.19,211.05,2.37]
[1734552179707,32.03403005,211.17,211.0,5.59988677]
[1734552179904,291.0,211.16,211.0,5.59988677]
[1734552180207,291.0,211.06,210.94,32.03403005]
[1734552180404,291.0,211.05,210.9,32.03403005]
[1734552180608,293.37,211.06,210.93,5.61639722]
[1734552180807,291.0,211.06,210.92,2.3715]
[1734552181005,291.0,210.98,210.88,5.77761002]
[1734552181207,291.0,210.98,210.86,32.03403005]
[1734552181411,291.0,210.95,210.87,2.3721]